Cogmind - Beta 16 @@@ ROGUE MODE // 2025.11.05 @ 18:18:59 Player: shapeshifter Result: Destroyed by H-61 Shepherd with Heavy Assault Cannon Performance ------------- Evolutions (2) 1000 Regions Visited (5) 1000 Robots Destroyed (19) 95 Value Destroyed (450) 450 Prototype IDs (24) 480 Alien Tech Used (0) 0 Bonus (307) 307 TOTAL SCORE: 3332 Bonus ------- Follower Combat Kills 7 Aligned with FarCom 300 Cogmind --------- Core Integrity 0/550 Matter 300/300 Energy 99/100 System Corruption 0% Temperature Cool (0) Movement Core (100) Ox1 Location -8/Materials Parts ------- > --- POWER (1) -------- (None) > --- PROPULSION (3) --- (None) > --- UTILITY (5) ------ Small Storage Unit Visual Processing Unit > --- WEAPON (2) ------- (None) > --- INVENTORY (8) ---- Flight Unit Modified TNC XL Autogun Array Grenade Launcher Longsword +1 Peak State ------------ > --- POWER ------------ (None) > --- PROPULSION ------- Flight Unit > --- UTILITY ---------- Small Storage Unit Visual Processing Unit Splice Drone Bay > --- WEAPON ----------- Longsword +1 > --- INVENTORY -------- Modified TNC XL Autogun Array Grenade Launcher [Rating: 23] Favorites ----------- Power None Propulsion Flight Unit Flight Unit Flight Unit Utility Visual Processing Unit Device Splice Drone Bay Storage Small Storage Unit Processor Visual Processing Unit Hackware Hacking Suite Weapon Light Assault Rifle Energy Gun Medium Laser Ballistic Gun Light Assault Rifle Slashing Weapon Longsword +1 Build | -11 -10 -10 -10 -9 -8 ------- Run | Yrd Mat Min Exi Min Mat Slots Evolved 4 | . . . . . 4 Power . | . . . . . . Propulsion 1 | . . . . . 1 Utility 3 | . . . . . 3 Weapon . | . . . . . . Parts Attached 13 | 2 5 . 2 . 4 Power . | . . . . . . Engine . | . . . . . . Core . | . . . . . . Reactor . | . . . . . . Propulsion 2 | . 2 . . . . Treads . | . . . . . . Leg . | . . . . . . Wheel . | . . . . . . Hover . | . . . . . . Flight 2 | . 2 . . . . Utility 5 | . 1 . 2 . 2 Device 2 | . . . 1 . 1 Storage 1 | . . . 1 . . Processor 1 | . 1 . . . . Hackware 1 | . . . . . 1 Protection . | . . . . . . Artifact . | . . . . . . Weapon 6 | 2 2 . . . 2 Energy Gun 1 | 1 . . . . . Energy Cannon . | . . . . . . Ballistic Gun 4 | 1 2 . . . 1 Ballistic Cannon . | . . . . . . Launcher . | . . . . . . Special Weapon . | . . . . . . Impact Weapon . | . . . . . . Slashing Weapon 1 | . . . . . 1 Piercing Weapon . | . . . . . . Special Melee Weapon . | . . . . . . Unidentified Prototypes 1 | . . . . . 1 Parts Lost 6 | . 1 . . . 5 Power . | . . . . . . Propulsion 2 | . 1 . . . 1 Utility 1 | . . . . . 1 Weapon 3 | . . . . . 3 Highest Loss Streak 2 | . 1 . . . 2 To Critical Strikes . | . . . . . . Average Backups 4 | 2 5 5 4 5 4 Power . | 1 2 2 1 . . Propulsion . | . . . . . . Utility 1 | . 2 2 1 1 1 Weapon 2 | . 1 1 2 3 3 Tool/Special . | . . . . . . Unused Backups 6 | . 1 . 1 1 3 Power 2 | . . . 1 1 . Propulsion . | . . . . . . Utility 1 | . . . . . 1 Weapon 3 | . 1 . . . 2 Tool/Special . | . . . . . . Average Slot Usage (%) 52 | . 36 57 68 71 43 Flight 10 | . 7 14 14 14 8 Device 2 | . . . 4 . 3 Storage 8 | . . . 7 14 9 Processor 10 | . 1 14 14 14 9 Hackware 1 | . . . . . 2 Ballistic Gun 18 | . 23 28 28 28 11 Peak Build Rating 23 | 2 5 5 11 11 23 Average Rating 10 | 1 2 5 8 11 14 On Entrance 5 | . 2 5 5 11 11 Avg Prop Armor Cover (%) . | . . . . . . Naked Turns . | . . . . . . Heaviest Build 16 | 3 3 3 8 8 16 Greatest Support 4 | 3 4 4 4 4 4 Greatest Overweight (x) 3 | . . . 1 1 3 Average Overweight (x) . | . . . . 1 1 Largest Inventory Capacity 8 | 5 5 5 8 8 8 Average Capacity 7 | 5 5 5 6 8 8 Most Carried 8 | 5 5 5 8 8 8 Average Carried 6 | 3 4 5 6 7 7 Final Capacity 8 | 5 5 5 8 8 8 Final Carried 8 | 5 5 5 8 8 8 Class Distribution -------------------- 96% | Mutant 3% | Scavenger-Mutant Dominant Class ---------------- Mutant | -10/Materials Mutant | -10/Mines Mutant | -10/Exiles Mutant | -9/Mines Mutant | -8/Materials Resources | -11 -10 -10 -10 -9 -8 ----------- Run | Yrd Mat Min Exi Min Mat Matter Collected 464 | 229 99 . . 30 106 Remotely . | . . . . . . Salvage Created 652 | 182 181 . . . 289 Parts 39 | 19 11 . . . 9 Haulers Intercepted . | . . . . . . Recyclers Shooed 1 | 1 . . . . . Parts Field Recycled . | . . . . . . Retrieved Matter . | . . . . . . Parts Self-Destructed . | . . . . . . Prevented . | . . . . . . Parts Restored . | . . . . . . Kills | -11 -10 -10 -10 -9 -8 ------- Run | Yrd Mat Min Exi Min Mat Combat Hostiles Destroyed 10 | . 5 . . . 5 Guns 9 | . 4 . . . 5 AOE 1 | . 1 . . . . Classes Destroyed 7 | 2 3 . . . 2 Worker 2 | . 2 . . . . Tunneler 5 | 5 . . . . . Recycler 1 | 1 . . . . . Operator 1 | . . . . . 1 Swarmer 2 | . 2 . . . . Grunt 7 | . 3 . . . 4 Sentry 1 | . . . . . 1 Best Kill Streak 6 | 4 6 . . . 3 Combat Bots Only 4 | . 4 . . . 3 Max Kills in Single Turn 2 | 2 2 . . . 1 Gunslinging . | . . . . . . Exploded 1 | . 1 . . . . Melee . | . . . . . . Uniques/NPCs Destroyed . | . . . . . . Combat | -11 -10 -10 -10 -9 -8 -------- Run | Yrd Mat Min Exi Min Mat Hostile Shots Fired 113 | . 35 4 . . 74 Missed 31 | . 10 1 . . 20 Hits 82 | . 25 3 . . 54 Projectile 82 | . 25 3 . . 54 AOE 1 | . . . . . 1 Critical Strikes 5 | . 1 . . . 4 Damage Taken 1303 | . 273 37 . . 993 Core 738 | . 144 26 . . 568 Absorbed by Shields . | . . . . . . Core Remaining (%) 66 | 100 . . . 32 . Volleys Fired 45 | 9 16 . . . 20 Largest 2 | 2 2 . . . 2 Hottest 70 | 70 40 . . . 40 Shots Fired 76 | 18 32 . . . 26 Gun 76 | 18 32 . . . 26 Cannon . | . . . . . . Launcher . | . . . . . . Special . | . . . . . . Kinetic 67 | 9 32 . . . 26 Thermal 9 | 9 . . . . . Explosive . | . . . . . . Electromagnetic . | . . . . . . Robot Hit Streak 13 | 11 13 . . . 11 Robot Miss Streak 5 | 2 5 . . . 2 Penetration Max . | . . . . . . Secondary Targets . | . . . . . . Shots Hit Robots 50 | 12 17 . . . 21 Core Hits 33 | 9 13 . . . 11 Critical Kills . | . . . . . . Critical Parts Destroyed . | . . . . . . Critical Strikes . | . . . . . . Melee Attacks 1 | . . . . . 1 Impact . | . . . . . . Slashing 1 | . . . . . 1 Piercing . | . . . . . . Sneak Attacks . | . . . . . . Combat Hostiles . | . . . . . . Follow-up Attacks . | . . . . . . Damage Inflicted 1009 | 130 498 . . . 381 Guns 656 | 130 207 . . . 319 Cannons . | . . . . . . Explosions 291 | . 291 . . . . Melee 62 | . . . . . 62 Ramming . | . . . . . . Kinetic 595 | 69 207 . . . 319 Thermal 61 | 61 . . . . . Explosive 291 | . 291 . . . . Electromagnetic . | . . . . . . Impact . | . . . . . . Slashing 62 | . . . . . 62 Piercing . | . . . . . . Highest Corruption . | . . . . . . Average Corruption . | . . . . . . Corruption Purged . | . . . . . . Corruption Blocked . | . . . . . . Overload Shots . | . . . . . . Overflow Damage 7 | . 7 . . . . Projectiles . | . . . . . . Explosions 7 | . 7 . . . . Melee . | . . . . . . Knockbacks . | . . . . . . Impact . | . . . . . . Kinetic . | . . . . . . Secondary . | . . . . . . Self-Inflicted Damage . | . . . . . . Shots . | . . . . . . Rammed . | . . . . . . Targets Rammed . | . . . . . . Kicked . | . . . . . . Crushed . | . . . . . . Highest Temperature 40 | 40 23 . . . 15 Average Temperature 12 | 17 7 . . . 8 Received Heat Transfer 486 | . 123 21 . . 342 Siege Activations . | . . . . . . Martial Activations . | . . . . . . Shielding Activations . | . . . . . . Robots Disrupted . | . . . . . . Combat Hostiles . | . . . . . . Robots Corrupted . | . . . . . . Combat Hostiles . | . . . . . . Parts Fried . | . . . . . . Impact Corruptions . | . . . . . . Robots Melted . | . . . . . . Combat Hostiles . | . . . . . . Parts Melted . | . . . . . . Heat Transferred 185 | 185 . . . . . Parts Sabotaged . | . . . . . . Parts Stolen . | . . . . . . Parts Stripped . | . . . . . . Power Chain Reactions . | . . . . . . Alert | -11 -10 -10 -10 -9 -8 ------- Run | Yrd Mat Min Exi Min Mat Maximum Alert Level . | . . . . . . Low Security (%) 100 | 100 100 100 . 100 100 Level 1 . | . . . . . . Level 2 . | . . . . . . Level 3 . | . . . . . . Level 4 . | . . . . . . Level 5 . | . . . . . . High Security . | . . . . . . Max Security . | . . . . . . Peak Influence 138 | 10 138 93 . . 67 Initial 53 | . 6 53 . . . Average 14 | 3 47 62 . . 10 Influence Increases 504 | 30 188 60 . . 226 Destroy 0b10 Robot/C 220 | . 100 . . . 120 Destroy 0b10 Robot/NC 45 | 30 10 . . . 5 Destroy Leader 40 | . 30 . . . 10 Allied During Kill 20 | . . . . . 20 Successful Hack 26 | . . . . . 26 Disable Machine 30 | . 30 . . . . Destroy Structure 18 | . 18 . . . . Lose Combat Pursuer 105 | . . 60 . . 45 Influence Decreases 473 | 20 60 165 33 . 195 Entered New Map 122 | . 4 85 33 . . Time Decay 211 | 20 46 20 . . 125 Lost Part 40 | . 10 . . . 30 Lost Ally 100 | . . 60 . . 40 Squads Dispatched 5 | . 2 . . . 3 Investigation 2 | . 1 . . . 1 Extermination . | . . . . . . Reinforcement 3 | . 1 . . . 2 Assault . | . . . . . . Garrison . | . . . . . . Intercept . | . . . . . . Searches Triggered . | . . . . . . Construction Impeded . | . . . . . . Haulers Reinforced . | . . . . . . Active Scanning Responses . | . . . . . . Cargo Convoy Interrupts . | . . . . . . Stealth | -11 -10 -10 -10 -9 -8 --------- Run | Yrd Mat Min Exi Min Mat Distress Signals 5 | . 1 . . . 4 Communications Jammed . | . . . . . . Distress Signals . | . . . . . . Times Spotted 47 | . 12 3 . . 32 Peak Tracking Total 8 | . 8 4 . . 7 Tactical Retreats 4 | . . 2 . . 2 Traps | -11 -10 -10 -10 -9 -8 ------- Run | Yrd Mat Min Exi Min Mat Traps Triggered 1 | . . . . . 1 Indirectly . | . . . . . . Trap Hack Attempts . | . . . . . . Triggered . | . . . . . . Disarmed . | . . . . . . Reprogrammed . | . . . . . . Reused . | . . . . . . Traps Extracted . | . . . . . . Installed . | . . . . . . Triggered . | . . . . . . Machines | -11 -10 -10 -10 -9 -8 ---------- Run | Yrd Mat Min Exi Min Mat Machines Disabled 2 | . 2 . . . . Max in Single Turn 2 | . 2 . . . . Machines Repaired . | . . . . . . Machines Dismantled . | . . . . . . Machines Sabotaged . | . . . . . . Overloaded Fab Kills . | . . . . . . Hacking | -11 -10 -10 -10 -9 -8 --------- Run | Yrd Mat Min Exi Min Mat Machines Accessed 8 | . 1 . 2 1 4 Terminals 5 | . 1 . . . 4 Fabricators . | . . . . . . Repair Stations . | . . . . . . Recycling Units . | . . . . . . Scanalyzers . | . . . . . . Garrison Access . | . . . . . . Total Hacks 15 | . 4 . 2 1 8 Successful 7 | . . . 2 1 4 Failed 8 | . 4 . . . 4 Catastrophic . | . . . . . . Database Lockouts . | . . . . . . Manual 5 | . . . 1 . 4 Terminals 12 | . 4 . . . 8 Fabricators . | . . . . . . Repair Stations . | . . . . . . Recycling Units . | . . . . . . Scanalyzers . | . . . . . . Garrison Access . | . . . . . . Terminal Hacks 7 | . . . 2 1 4 Record 1 | . . . 1 . . Open Door 1 | . . . . 1 . Branch Access Points 1 | . . . . . 1 Zone Layout 3 | . . . . . 3 Proto ID Catalog 1 | . . . 1 . . Fabricator Hacks . | . . . . . . Repair Station Hacks . | . . . . . . Recycling Unit Hacks . | . . . . . . Scanalyzer . | . . . . . . Garrison Access Hacks . | . . . . . . Unauthorized Hacks . | . . . . . . Terminals . | . . . . . . Fabricators . | . . . . . . Repair Stations . | . . . . . . Recycling Units . | . . . . . . Scanalyzers . | . . . . . . Garrison Access . | . . . . . . Data Cores Recovered . | . . . . . . Used . | . . . . . . Hacking Detections 4 | . 1 . . . 3 Full Trace Events 1 | . 1 . . . . Feedback Events . | . . . . . . Feedback Blocked . | . . . . . . Robot Schematics Acquired . | . . . . . . Robots Built . | . . . . . . Authchips . | . . . . . . Time . | . . . . . . Total Robot Build Rating . | . . . . . . Part Schematics Acquired . | . . . . . . Parts Built . | . . . . . . Authchips . | . . . . . . Time . | . . . . . . Total Part Build Rating . | . . . . . . Part Studies Acquired . | . . . . . . Parts Repaired . | . . . . . . Time . | . . . . . . Parts Recycled . | . . . . . . Recycled Matter . | . . . . . . Retrieved Matter . | . . . . . . Retrieved Components . | . . . . . . Parts Scanalyzed . | . . . . . . Part Schematics Acquired . | . . . . . . Parts Damaged . | . . . . . . Bothacking | -11 -10 -10 -10 -9 -8 ------------ Run | Yrd Mat Min Exi Min Mat Used RIF Installer . | . . . . . . Robots Hacked . | . . . . . . Non-combat . | . . . . . . Combat . | . . . . . . Robot Hacks Applied . | . . . . . . Relay Couplers Released . | . . . . . . Fabnet Peak Effective % . | . . . . . . Robots Rewired . | . . . . . . Allies Hacked . | . . . . . . Hacks Repelled . | . . . . . . Allies | -11 -10 -10 -10 -9 -8 -------- Run | Yrd Mat Min Exi Min Mat Total Allies 11 | . . 3 . . 8 Largest Group 3 | . . 3 . . 3 Highest-Rated Group 61 | . . 40 . . 61 Highest-Rated Ally 29 | . . 16 . . 29 Total Orders . | . . . . . . Ally Attacks 55 | . . . . . 55 Total Damage 341 | . . . . . 341 Kills 1 | . . . . . 1 Allies Corrupted . | . . . . . . Allies Melted . | . . . . . . Intel | -11 -10 -10 -10 -9 -8 ------- Run | Yrd Mat Min Exi Min Mat Active Infowar (turns) 1169 | . 2 54 205 208 700 Optics 1169 | . 2 54 205 208 700 Seismic 58 | . . . 58 . . Robot Analysis Total . | . . . . . . Derelict Logs Recovered 2 | . . 1 . 1 . Drone Launches 47 | . . . . . 47 Drone Recoveries 41 | . . . . . 41 Exploration | -11 -10 -10 -10 -9 -8 ------------- Run | Yrd Mat Min Exi Min Mat Turns Passed 1356 | 72 117 54 205 208 700 Spaces Moved 1100 | 46 131 116 305 173 329 Core 145 | 46 70 . . . 29 Treads . | . . . . . . Legs . | . . . . . . Wheels . | . . . . . . Hover . | . . . . . . Flight 955 | . 61 116 305 173 300 Fastest Speed 40 | 50 40 40 40 120 100 Average Speed 96 | 50 45 40 65 120 158 Slowest Speed 280 | 50 50 40 120 120 280 Overloaded Moves . | . . . . . . Propulsion Burnouts . | . . . . . . Robots Hopped . | . . . . . . Potential Cave-ins . | . . . . . . Cave-ins Triggered . | . . . . . . Exploration Rate (%) 38 | 4 38 31 70 50 40 Regions Visited 5 Branch Regions 3 Pre-discovered Areas 1 | . . . 1 . . Known Exits Taken . | . . . . . . Unknown Exits Taken 5 | 1 1 1 1 1 . Scrap Searched 1 | . . . . 1 . Spaces Dug . | . . . . . . Terrain Destroyed 19 | . 19 . . . . Melee . | . . . . . . Projectile . | . . . . . . AOE 19 | . 19 . . . . Terrain Rammed . | . . . . . . Walls Destroyed . | . . . . . . Machines Disabled . | . . . . . . Actions | -11 -10 -10 -10 -9 -8 --------- Run | Yrd Mat Min Exi Min Mat Total 1328 | 78 158 122 311 174 485 Wait 151 | 15 3 7 . . 126 Move 1095 | 45 130 115 304 172 329 Hop . | . . . . . . Pick Up 15 | 7 1 . 3 1 3 Fast Attach 4 | . 4 . . . . Attach 8 | 2 . . 2 . 4 Detach 1 | . . . . . 1 Swap 1 | . 1 . . . . Drop 7 | . 3 . 2 1 1 Fire 45 | 9 16 . . . 20 Melee 1 | . . . . . 1 Ram . | . . . . . . Kick . | . . . . . . Crush . | . . . . . . Escape Stasis . | . . . . . . Rewire . | . . . . . . Trap . | . . . . . . Miscellaneous . | . . . . . . Route ------- -11/Scrapyard -10/Materials (discovered 2 exits: [*Mat] / [*Min]) -10/Mines -10/Exiles -9/Mines -8/Materials History --------- Turn | Location | Event 16 | -11/Scrapyard | Discovered new exit (range 15) 73 | -11/Scrapyard | Entered Materials 120 | -10/Materials | Discovered new exit (range 9) 157 | -10/Materials | Core integrity fell below 50% 182 | -10/Materials | Discovered new exit (range 8) 190 | -10/Materials | Entered Mines 191 | -10/Mines | Met a Derelict bent on vengeance 230 | -10/Mines | Assembled infested the area 230 | -10/Mines | Assisted by bots powering up and referring to "LRC-V3" 235 | -10/Mines | Deemed a non-threat by the Exiles lab entrance 235 | -10/Mines | Discovered new exit (range 5) 244 | -10/Mines | Entered Exiles 254 | -10/Exiles | Met 8R-AWN 261 | -10/Exiles | Met EX-HEX 274 | -10/Exiles | Lost 3 allies 280 | -10/Exiles | Met EX-DEC 286 | -10/Exiles | Learned location of Zion (-7) 311 | -10/Exiles | Met EX-BIN 317 | -10/Exiles | Aligned with FarCom system 318 | -10/Exiles | Given EX-Vault access code 327 | -10/Exiles | Opened EX-Vault 328 | -10/Exiles | Found Prototype Slashing Weapon 330 | -10/Exiles | Identified Longsword +1 332 | -10/Exiles | Found Modified TNC 340 | -10/Exiles | Found XL Autogun Array 365 | -10/Exiles | Warned to stay clear of 0b10 Research branches 439 | -10/Exiles | Discovered new exit (range 10) 449 | -10/Exiles | Stole three prototypes: Modified TNC, XL Autogun Array, Longsword +1 449 | -10/Exiles | Entered Mines 452 | -9/Mines | Learned Materials security intel 620 | -9/Mines | Build established: Mutant 623 | -9/Mines | Discovered new exit (range 6) 638 | -9/Mines | Found the Drone Emporium 646 | -9/Mines | Found Prototype Device 657 | -9/Mines | Entered Materials 657 | -8/Materials | Evolved 4 slots: Propulsion x1, Utility x3 1016 | -8/Materials | Identified Splice Drone Bay 1316 | -8/Materials | Core integrity fell below 50% 1349 | -8/Materials | Core integrity fell below 20% 1357 | -8/Materials | Destroyed by H-61 Shepherd with Heavy Assault Cannon Last Messages --------------- Core. 01333_ W-25 Informer sends out distress signal. 01335_ K-01 Serf collects debris. 01346_ Minigun destroyed. 01346_ Critical hit (Blast). 01348_ R-06 Scavenger inserts Particle Gun into recycling unit. 01348_ Knocked back. 01351_ Penetrated by Slug. 01351_ Hacking Suite destroyed. 01351_ Critical hit (Blast). 01351_ R-06 Scavenger inserts Splice Drone Bay into recycling unit. 01353_ Nuclear Reactor explodes. 01353_ R-06 Scavenger destroyed. 01353_ Recycling Unit disabled. 01353_ Flak Cannon tumbles out of recycling unit. 01356_ Acquired Flight Unit. 01357_ Slug penetrates Wall. Map ----- +----------------------------------------------------+ | | | | | | | | | | | | | | | | | ?????????????????????????????????????????????????? | | ?????????????????????????????????????????????????? | | ?????????????????????????????????????????????????? | | ????????????????????????????Y????????????????????? | | ?????????????????????????????????????????????????? | | ?????????????????????????????????????????????????? | | ?????????????????????????????????????????????????? | | ?????????????????????????????????????????????????? | | ?????????????????????????????????????????????????? | | ????# ??????????????????????????????????????????? | | ????# ?????????????????????????????????????????? | | ???## #????????????????????????????????????????? | | ??## #####+#########?????????????????????????? | | ?? """ #?????????????????????????? | | ? "Y #?????????????????????????? | | ?? H *%] ########??????????????????? | | ???# r= ; === #??????????????????? | | ?????# ; @= #??????????????????? | | ?????# # = #??????????????????? | | ###### + % #??????????????????? | | ] # #??????????????????? | | Y ; +??????????????????? | | ########??????????????????? | | ??#######+### ####?????????????????????????? | | ?? #??????# # ????????????????????????? | | ? "" #??????# # """""??????????????????????????? | | # "" #??????#% + ""T""??????????????????????????? | | + T" #??????# # +??????????????????????? | | # "" #??????# #?""" #??????????????????????? | | # "" #??????# #??"" != #??????????????????????? | | #? #??????# % #???? != #??????????????????????? | | #? #??????# #??????==?#??????????????????????? | | #??###??????# #????????????????????????????????? | | #############% #????????????????????????????????? | | #????????????????????????????????? | | #????????????????????????????????? | | #????????????????????????????????? | | ############# #????????????????????????????????? | | ????????????# #????????????????????????????????? | | ????????????# #????????????????????????????????? | | ????????????# #????????????????????????????????? | | ????????????# #????????????????????????????????? | +----------------------------------------------------+ Best States ------------- Heat Dissipation 31 Energy Generation 5 Energy Capacity 100 Matter Stores 300 Matter Capacity 300 Sight Range 18 Terrain Scan Density 10 Evasion (%) 62 Offensive Hacking 10 Item Schematics ----------------- None Robot Schematics ------------------ None Fabricated ------------ Nothing Repaired ---------- Nothing Studied --------- None Alien Tech Used ----------------- None Achievements -------------- None Challenges ------------ None Game ------ Seed SalvagingStructuralSteel Manual? 0 Play Time 00:16:38 Cumulative 472.7 hours Start 2025.11.05 @ 18:06:59 End 2025.11.05 @ 18:18:59 Sessions 1 Manual Loads 0 Difficulty Rogue Special Mode None Game No. 599 Rogue 599 Adventurer 0 Explorer 0 Win Type - Total 14 Types 6/0/2/2/1/0/2/1/0/0 Lore% 90 Gallery% 85 Achievement% 63 Wizard Run 0 Options --------- Layout 2 ASCII 0 Keyboard 0 Movement Mouse Keybinds 0 Fullscreen 1 Font 24/Smallcaps Map View 50x49 Zoom Use 0% Tactical HUD 1 Map Filters NONE Filters NONE Steam 1 RUN: db6f21ad-a45f-46ac-ac15-29f4c2f1550d